fUSD/lending_fUSD_20251115
["ID","MTS","AMOUNT","RATE_DAILY","PERIOD"]
[394040047,1763211045248,-500.70078242,0.00017378,2]
[394040049,1763211045257,-300.0,0.00017378,2]
[394040051,1763211045266,-300.0,0.00017378,2]
[394040053,1763211045275,-300.0,0.00017378,2]
[394040055,1763211045285,-250.0,0.00017378,2]
[394040056,1763211045294,-250.0,0.00017379,2]
[394040058,1763211045303,-503.0,0.00017397,2]
[394040061,1763211045312,-1000.0,0.00017568,2]
[394040062,1763211045321,-166.66,0.00017669,2]
[394040065,1763211045331,-221.83485597,0.00017675,2]
[394040067,1763211045340,-300.0,0.000177,6]
[394040069,1763211045349,-500.0,0.00017708,2]
[394040071,1763211045358,-500.0,0.00017708,2]
[394040073,1763211045368,-184.53152336,0.00017708,2]
[394040075,1763211045378,-700.0,0.000178,6]
[394040076,1763211045387,-500.0,0.00017808,2]
[394040077,1763211045396,-349.69658431,0.000179,2]
[394040078,1763211045405,-1000.0,0.000179,6]
[394040079,1763211045414,-268.78178008,0.000179,2]
[394040080,1763211045423,-325.0,0.00017973,2]
[394040081,1763211045432,-331.61580868,0.00017973,2]
[394040082,1763211045442,-500.52564304,0.00017973,2]
[394040083,1763211045451,-500.0,0.00017973,2]
[394040084,1763211045460,-500.0,0.00017973,2]
[394040085,1763211045469,-191.28003735,0.00017973,2]
[394040086,1763211045482,-426.01554708,0.0001799,2]
[394040088,1763211045491,-500.0,0.00017999,2]
[394040089,1763211045500,-500.0,0.00017999,2]
[394040090,1763211045510,-500.0,0.00017999,2]
[394040091,1763211045519,-586.58416646,0.00017999,2]
[394040092,1763211045528,-500.0,0.00017999,2]
[394040093,1763211045537,-500.0,0.00017999,2]
[394040094,1763211045545,-269.45842401,0.00017999,2]
[394040095,1763211045555,-500.0,0.00017999,2]
[394040096,1763211045564,-500.0,0.00017999,2]
[394040097,1763211045573,-500.0,0.00017999,2]
[394040098,1763211045582,-500.0,0.00017999,2]
[394040099,1763211045591,-556.22510754,0.00017999,2]
[394040101,1763211045600,-259.09,0.00017999,2]
[394040102,1763211045609,-500.0,0.00017999,2]
[394040103,1763211045618,-366.97143755,0.00017999,2]
[394040104,1763211045630,-663.0,0.00018,2]
[394040105,1763211045639,-1624922.19066187,0.00018,2]
[394040106,1763211045648,-192717.10006227,0.00018,2]
[394040107,1763211045658,-181.30254624,0.00018,2]
[394040108,1763211045668,-330.10215858,0.00018,2]
[394040109,1763211045677,-600.51763678,0.00018,2]
[394040110,1763211045686,-1000.0,0.00018082,2]
[394040111,1763211045703,-338.90071865,0.00018205,2]
[394040112,1763211045712,-210.57,0.00018263,2]
[394040113,1763211045721,-259.09,0.00018273,2]
[394040114,1763211045730,-157.04190861,0.00018284,2]
[394040115,1763211045739,-166.66,0.00018353,2]
[394040116,1763211045748,-300.0,0.00018486,2]
[394040117,1763211045758,-1019.08823513,0.00018521,2]
[394040118,1763211045768,-1001.86678561,0.00018521,2]
[394040119,1763211045777,-259.09923532,0.00018547,2]
[394040120,1763211045786,-281.74,0.00018635,2]
[394040121,1763211045795,-1260.63348036,0.00018688,2]
[394040122,1763211045804,-1000.0,0.0001876,2]
[394040123,1763211045813,-571.0,0.00018892,2]
[394040124,1763211045822,-166.66,0.00018921,2]
[394040125,1763211045831,-300.0,0.00019,2]
[394040126,1763211045840,-153.02150592,0.00019,2]
[394040127,1763211045850,-2351.0,0.00019083,2]
[394040128,1763211045859,-173.22,0.00019353,2]
[394040129,1763211045868,-1000.0,0.00019438,2]
[394040130,1763211045880,-166.66,0.0001949,2]
[394040131,1763211045892,-1000.0,0.0001952,2]
[394040132,1763211045901,-166.68,0.00019566,2]
[394040133,1763211045910,-157.19895052,0.00019975,2]
[394040134,1763211045919,-150.17,0.0002,2]
[394040135,1763211045928,-166.66,0.00020058,2]
[394040136,1763211045937,-1000.0,0.00020116,2]
[394040137,1763211045946,-700.77,0.00020187,2]
[394040138,1763211045955,-1000.0,0.00020795,2]
[394040139,1763211045964,-2377.0,0.00020973,2]
[394040140,1763211045973,-350.0,0.00021,2]
[394040141,1763211045982,-478.96003305,0.00021462,2]
[394040142,1763211045991,-1000.0,0.00021472,2]
[394040143,1763211046000,-1260.63348036,0.00021477,2]
[394040144,1763211046008,-349.69658426,0.0002175,2]
[394040145,1763211046018,-999.99,0.00021757,2]
[394040146,1763211046027,-1188.29,0.00021757,2]
[394040147,1763211046036,-323.52,0.00021757,2]
[394040148,1763211046046,-150.99,0.00021757,2]
[394040149,1763211046055,-150.99,0.00021757,2]
[394040150,1763211046064,-9999.99,0.00021757,2]
[394040151,1763211046072,-623.7,0.00021873,2]
[394040152,1763211046081,-5000.0,0.00021918,2]
[394040153,1763211046090,-173.22,0.00022118,2]
[394040154,1763211046099,-11580.02877845,0.00023333,7]
[394040155,1763211046108,-478.96003305,0.00023333,7]
[394040156,1763211046117,-1000.0,0.00023424,2]
[394040157,1763211046126,-163.00519291,0.00023958,2]
[394040158,1763211046136,-5522.87,0.00024,2]
[394040159,1763211046147,-1260.63348036,0.00024265,2]
[394040160,1763211046155,-575.0,0.00024548,2]
[394040161,1763211046164,-1318.0,0.00024548,2]
[394040162,1763211046174,-608.0,0.00024548,2]
[394040163,1763211046183,-3430.0,0.00024548,2]
[394040164,1763211046192,-1598.0,0.00024548,2]
[394040165,1763211046201,-821.0,0.00024548,2]
[394040166,1763211046211,-793.0,0.00024548,2]
[394040167,1763211046220,-1275.0,0.00024548,2]
[394040168,1763211046229,-6487.0,0.00024548,2]
[394040169,1763211046238,-1603.0,0.00024548,2]
[394040170,1763211046248,-560.0,0.00024548,2]
[394040171,1763211046257,-1477.93,0.00024658,30]
[394040172,1763211046270,-1000.0,0.00024658,2]
[394040173,1763211046279,-500.0,0.00024799,2]
[394040174,1763211046288,-500.0,0.00024799,2]
[394040175,1763211046298,-478.96003305,0.000248,3]
[394040176,1763211046307,-64613.28247831,0.000248,3]
[394040180,1763211046479,-2768.73050836,0.000248,3]
[394040181,1763211046492,-422.73999994,0.000248,3]
[394040182,1763211046511,-39929.00000076,0.000248,3]
[394040183,1763211046523,-2922.57037418,0.000248,3]
[394040184,1763211046534,-4800.0,0.000248,3]
[394040185,1763211046548,-220.06810572,0.00024548,2]
[394040186,1763211046558,-45.02473631,0.000248,3]
[394040187,1763211046570,-346.4546635,0.000248,3]
[394040189,1763211055371,800404.11922919,0.00041332,30]
[394040190,1763211061226,200.0,0.00041332,30]
[394040193,1763211403544,5050.0,0.00041332,38]
[394040194,1763211557822,216.79158761,0.00013941,2]
[394040195,1763211558104,216.79158761,0.00014154,2]
[394040196,1763211558421,216.79158761,0.00014278,2]
[394040197,1763211558733,216.79158761,0.00014588,2]
[394040198,1763211559034,216.79158761,0.00015042,2]
[394040199,1763211559341,216.79158761,0.00015261,2]
[394040200,1763211559778,216.79158761,0.00015483,2]
[394040201,1763211576565,196.0,0.0004132,30]
[394040202,1763211584825,-216.79158761,0.00015815,2]
[394040203,1763211584848,-1134.57013236,0.00015873,2]
[394040204,1763211584870,-3678.24565158,0.00015873,2]
[394040205,1763211584893,-250.0,0.00015885,2]
[394040206,1763211584915,-250.0,0.00015896,2]
[394040207,1763211584937,-300.0,0.00015897,2]
[394040208,1763211584959,-1200.0,0.00015897,2]
[394040209,1763211584981,-500.0,0.00015898,2]
[394040210,1763211585003,-500.0,0.00015898,2]
[394040211,1763211585028,-638.93014794,0.00015898,2]
[394040212,1763211585050,-500.0,0.00015898,2]
[394040213,1763211585072,-500.0,0.00015898,2]
[394040214,1763211585094,-500.0,0.00015898,2]
[394040215,1763211585117,-500.0,0.00015898,2]
[394040216,1763211585138,-500.0,0.00015898,2]
[394040217,1763211585161,-151.0,0.00015898,2]
[394040218,1763211585187,-151.0,0.00015898,2]
[394040219,1763211585210,-151.0,0.00015898,2]
[394040220,1763211585233,-151.0,0.00015898,2]
[394040221,1763211585257,-151.0,0.00015898,2]
[394040222,1763211585280,-151.0,0.00015898,2]
[394040223,1763211585303,-151.0,0.00015898,2]
[394040224,1763211585328,-151.0,0.00015898,2]
[394040225,1763211585351,-151.0,0.00015898,2]
[394040226,1763211585375,-151.0,0.00015898,2]
[394040227,1763211585400,-151.0,0.00015898,2]
[394040228,1763211585422,-151.0,0.00015898,2]
[394040229,1763211585445,-151.0,0.00015898,2]
[394040230,1763211585469,-151.0,0.00015898,2]
[394040231,1763211585491,-151.0,0.00015898,2]
[394040232,1763211585513,-151.0,0.00015898,2]
[394040233,1763211585536,-151.0,0.00015898,2]
[394040234,1763211585559,-151.0,0.00015898,2]
[394040235,1763211585581,-151.0,0.00015898,2]
[394040236,1763211585603,-151.0,0.00015898,2]
[394040237,1763211585625,-251.53162713,0.00015907,2]
[394040238,1763211585652,-209.2966124,0.00015907,2]
[394040239,1763211585674,-500.0,0.00015907,2]
[394040240,1763211585696,-267.30217178,0.00015907,2]
[394040241,1763211585721,-500.0,0.00015907,2]
[394040242,1763211585746,-500.0,0.00015907,2]
[394040243,1763211585771,-500.0,0.00015907,2]
[394040244,1763211585795,-500.0,0.00015907,2]
[394040245,1763211585824,-500.0,0.00015907,2]
[394040246,1763211585849,-500.0,0.00015907,2]
[394040247,1763211585873,-500.35086534,0.00015907,2]
[394040248,1763211585900,-500.0,0.00015907,2]
[394040249,1763211585924,-500.0,0.00015907,2]
[394040250,1763211585948,-500.0,0.00015907,2]
[394040251,1763211585973,-500.0,0.00015907,2]
[394040252,1763211585998,-500.0,0.00015907,2]
[394040253,1763211586024,-500.0,0.00015907,2]
[394040254,1763211586048,-500.0,0.00015907,2]
[394040255,1763211586072,-500.0,0.00015907,2]
[394040256,1763211586096,-500.0,0.00015907,2]
[394040257,1763211586128,-500.0,0.00015907,2]
[394040258,1763211586159,-500.0,0.00015907,2]
[394040259,1763211586184,-500.0,0.00015907,2]
[394040260,1763211586209,-500.0,0.00015907,2]
[394040261,1763211586237,-500.0,0.00015907,2]
[394040262,1763211586264,-500.0,0.00015907,2]
[394040263,1763211586294,-500.0,0.00015907,2]
[394040264,1763211586320,-500.0,0.00015907,2]
[394040265,1763211586348,-500.0,0.00015907,2]
[394040266,1763211586377,-500.0,0.00015907,2]
[394040267,1763211586403,-37582.98120386,0.00015908,2]
[394040268,1763211610556,173.22,0.00029087,120]
[394040269,1763211617237,-151.0,0.00015898,2]
[394040270,1763211617264,-151.0,0.00015898,2]
[394040271,1763211617291,-1200.0,0.00015907,2]
[394040272,1763211617315,-300.0,0.00015907,2]
[394040273,1763211617342,-8198.0,0.00015908,2]
[394040274,1763211619449,-10000.0,0.00015908,2]
[394040275,1763211622382,-10000.0,0.00015908,2]
[394040276,1763211623791,-10000.0,0.00015908,2]
[394040277,1763211625038,-10000.0,0.00015908,2]
[394040278,1763211626185,-150.19343351,0.00015873,2]
[394040279,1763211626212,-9849.80656649,0.00015908,2]
[394040280,1763211627994,-10000.0,0.00015908,2]
[394040281,1763211634390,-8000.0,0.00015908,2]
[394040282,1763211651794,-1600.0,0.00015908,2]
[394040283,1763211663140,-500.0,0.00015907,2]
[394040284,1763211663166,-500.0,0.00015907,2]
[394040285,1763211663192,-300.0,0.00015907,2]
[394040286,1763211663217,-1400.0,0.00015908,2]
[394040287,1763211703299,-151.0,0.00015898,2]
[394040288,1763211703323,-151.0,0.00015898,2]
[394040289,1763211703346,-151.0,0.00015898,2]
[394040290,1763211703370,-151.0,0.00015898,2]
[394040291,1763211703395,-151.0,0.00015898,2]
[394040292,1763211703420,-151.0,0.00015898,2]
[394040293,1763211703448,-151.0,0.00015898,2]
[394040294,1763211703474,-151.0,0.00015898,2]
[394040295,1763211703499,-151.0,0.00015898,2]
[394040296,1763211703522,-191.99921359,0.00015898,2]
[394040297,1763211703545,-500.0,0.00015907,2]
[394040298,1763211703569,-500.0,0.00015907,2]
[394040299,1763211703594,-17449.00078641,0.00015908,2]
[394040300,1763211705278,-20000.0,0.00015908,2]
[394040301,1763211706466,-20000.0,0.00015908,2]
[394040302,1763211707662,-20000.0,0.00015908,2]
[394040303,1763211708926,-500.0,0.00015907,2]
[394040304,1763211708957,-500.0,0.00015907,2]
[394040305,1763211708989,-19000.0,0.00015908,2]
[394040306,1763211710639,-20000.0,0.00015908,2]
[394040307,1763211712239,-20000.0,0.00015908,2]
[394040308,1763211713590,-20000.0,0.00015908,2]
[394040309,1763211714847,-20000.0,0.00015908,2]
[394040310,1763211717540,-20000.0,0.00015908,2]
[394040311,1763211724360,-10600.0,0.00015908,2]
[394040314,1763211838767,5176.92,0.00041321,30]
[394040315,1763212050876,-216.95582367,0.00015793,2]
[394040316,1763212136282,165.0,0.000301,120]
[394040317,1763212153837,9566.09835266,0.00015659,2]
[394040318,1763212153862,4202.25164734,0.00015659,2]
[394040323,1763212231865,-500.0,0.00015798,2]
[394040324,1763212231875,-250.0,0.00015803,2]
[394040325,1763212231885,-205.04341264,0.00015807,2]
[394040326,1763212231896,-94.95658736,0.00015807,2]
[394040327,1763212231905,-1200.0,0.00015807,2]
[394040328,1763212231915,-992.7492,0.00015808,2]
[394040329,1763212231924,-66760.2412,0.00015808,2]
[394040330,1763212231933,-4115.57486992,0.00015808,2]
[394040331,1763212231942,-160.55864621,0.00015808,2]
[394040332,1763212232154,-176.47500351,0.00015873,2]
[394040333,1763212232163,-610.55,0.00015898,2]
[394040334,1763212232173,-151.0,0.00015898,2]
[394040335,1763212232183,-151.0,0.00015898,2]
[394040336,1763212232192,-151.0,0.00015898,2]
[394040337,1763212232201,-151.0,0.00015898,2]
[394040338,1763212232211,-151.0,0.00015898,2]
[394040339,1763212232219,-151.0,0.00015898,2]
[394040340,1763212232228,-151.0,0.00015898,2]
[394040341,1763212232238,-151.0,0.00015898,2]
[394040342,1763212232247,-151.0,0.00015898,2]
[394040343,1763212232256,-151.0,0.00015898,2]
[394040344,1763212232266,-257.54438633,0.00015898,2]
[394040345,1763212232285,-151.0,0.00015898,2]
[394040346,1763212232294,-151.0,0.00015898,2]
[394040347,1763212232303,-151.0,0.00015898,2]
[394040348,1763212232313,-151.0,0.00015898,2]
[394040350,1763212232323,-151.0,0.00015898,2]
[394040351,1763212232332,-255.71432192,0.00015907,2]
[394040353,1763212232342,-487.51681468,0.00015907,2]
[394040355,1763212232351,-500.0,0.00015907,2]
[394040357,1763212232360,-500.0,0.00015907,2]
[394040359,1763212232369,-500.0,0.00015907,2]
[394040361,1763212232378,-482.53721792,0.00015907,2]
[394040363,1763212232387,-516.31305318,0.00015907,2]
[394040365,1763212232396,-10252.44000314,0.00015908,2]
[394040368,1763212232407,-36603.77347243,0.00015908,2]
[394040370,1763212232418,-11617.14611093,0.00015908,2]
[394040372,1763212232428,-181.30254624,0.00015908,2]
[394040374,1763212232437,-256.74612334,0.00015908,2]
[394040376,1763212232446,-25262.45537093,0.00015908,2]
[394040378,1763212232457,-111919.21184657,0.00015908,2]
[394040380,1763212232466,-13312.5760675,0.00015908,2]
[394040382,1763212232476,-500.0,0.00015973,2]
[394040384,1763212232485,-500.0,0.00015973,2]
[394040386,1763212232495,-500.0,0.00015973,2]
[394040388,1763212232504,-500.0,0.00015973,2]
[394040390,1763212232513,-500.0,0.00015973,2]
[394040392,1763212232523,-500.0,0.00015973,2]
[394040394,1763212232532,-164.32358562,0.00015973,2]
[394040396,1763212232541,-274.7187987,0.00015973,2]
[394040398,1763212232551,-427.26831172,0.00015973,2]
[394040400,1763212232560,-500.0,0.00015973,2]
[394040401,1763212232569,-500.0,0.00015973,2]
[394040402,1763212232578,-500.0,0.00015973,2]
[394040403,1763212232587,-292.07745313,0.00015973,2]
[394040404,1763212232596,-500.0,0.00015973,2]
[394040405,1763212232607,-610.55,0.00016172,2]
[394040406,1763212232617,-730.66084712,0.00016393,2]
[394040407,1763212232626,-202.49325871,0.00016438,2]
[394040408,1763212232636,-236.76401179,0.00016438,2]
[394040409,1763212232645,-610.55,0.00016446,2]
[394040410,1763212232654,-503.86217753,0.00016521,2]
[394040411,1763212232663,-500.0,0.00016521,2]
[394040412,1763212232672,-500.0,0.00016521,2]
[394040413,1763212232682,-500.0,0.00016521,2]
[394040414,1763212232691,-1047.24248983,0.00016521,2]
[394040415,1763212232700,-500.0,0.00016521,2]
[394040416,1763212232709,-500.0,0.00016521,2]
[394040417,1763212232718,-500.0,0.00016521,2]
[394040418,1763212232728,-500.0,0.0001664,2]
[394040419,1763212232737,-500.0,0.0001664,2]
[394040420,1763212232746,-500.52944315,0.0001665,2]
[394040421,1763212232755,-500.0,0.0001665,2]
[394040422,1763212232765,-500.0,0.0001665,2]
[394040423,1763212232774,-500.0,0.0001666,2]
[394040424,1763212232783,-610.55,0.0001672,2]
[394040425,1763212232792,-500.0,0.00016866,2]
[394040426,1763212232801,-500.0,0.00016866,2]
[394040427,1763212232810,-222.98349588,0.00016867,2]
[394040428,1763212232820,-530.33053363,0.00016888,2]
[394040429,1763212232829,-500.59935397,0.00016888,2]
[394040430,1763212232839,-330.24836993,0.00016888,2]
[394040431,1763212232848,-1200.0,0.000169,2]
[394040432,1763212232859,-500.0,0.00016925,2]
[394040433,1763212232868,-710.90706566,0.00016951,2]
[394040434,1763212232877,-500.0,0.00016973,2]
[394040435,1763212232887,-500.0,0.00016973,2]
[394040436,1763212232896,-203.71704136,0.00016986,2]
[394040437,1763212232906,-97748.73,0.00016986,2]
[394040438,1763212232916,-610.55,0.00016994,2]
[394040439,1763212232926,-500.0,0.00016999,2]
[394040440,1763212232937,-500.0,0.00016999,2]
[394040441,1763212232947,-500.0,0.00016999,2]
[394040442,1763212232957,-300.0,0.00017,2]
[394040443,1763212232966,-250.0,0.00017,2]
[394040444,1763212232975,-173.78542732,0.0001705,2]
[394040445,1763212232984,-610.59923532,0.00017268,2]
[394040446,1763212232994,-298.0,0.00017285,2]
[394040447,1763212233003,-1680.0,0.00017372,2]
[394040448,1763212233012,-250.0,0.00017378,2]
[394040449,1763212233022,-200.0,0.00017378,2]
[394040450,1763212233031,-195.0,0.00017378,2]
[394040451,1763212233040,-200.0,0.00017378,2]
[394040452,1763212233049,-195.0,0.00017378,2]
[394040453,1763212233058,-250.0,0.00017378,2]
[394040454,1763212233067,-300.0,0.00017378,2]
[394040455,1763212233076,-300.0,0.00017378,2]
[394040456,1763212233086,-300.0,0.00017378,2]
[394040457,1763212233096,-300.0,0.00017378,2]
[394040458,1763212233106,-300.0,0.00017378,2]
[394040459,1763212233116,-519.08823513,0.00017521,2]
[394040460,1763212233125,-501.86678561,0.00017521,2]
[394040461,1763212233135,-58473.3595865,0.00017661,2]
[394040462,1763212233146,-1200.0,0.000179,3]
[394040463,1763212233155,-500.0,0.00017999,2]
[394040464,1763212233165,-204.30571111,0.00017999,2]
[394040465,1763212233174,-500.0,0.00017999,2]
[394040466,1763212233183,-500.0,0.00017999,2]
[394040467,1763212233192,-525.85631123,0.00017999,2]
[394040468,1763212233201,-683.80747824,0.00018,2]
[394040469,1763212233210,-210.57,0.00018079,2]
[394040470,1763212233220,-1000.0,0.00018082,2]
[394040471,1763212233229,-157.04190861,0.00018294,2]
[394040472,1763212233238,-244.17,0.00018296,2]
[394040473,1763212233247,-4115.57486987,0.00018607,2]
[394040474,1763212233256,-1000.0,0.0001876,2]
[394040475,1763212233272,-1337.0,0.000189,4]
[394040476,1763212233282,-300.0,0.00019,2]
[394040477,1763212233292,-2970.4372299,0.00019035,2]
[394040478,1763212233301,-1848.0,0.00019093,2]
[394040479,1763212233312,-166.66,0.00019146,2]
[394040480,1763212233321,-200.0,0.00019343,2]
[394040481,1763212233330,-173.22,0.00019391,2]
[394040482,1763212233340,-20905.82704296,0.00019414,2]
[394040483,1763212233356,-37567.53254354,0.00019414,2]
[394040484,1763212233365,-515.17,0.0001943,2]
[394040485,1763212233375,-1000.0,0.00019438,2]
[394040486,1763212233384,-168.06,0.00019462,2]
[394040487,1763212233394,-216.95582367,0.00019533,2]
[394040488,1763212233403,-166.66,0.00019549,2]
[394040489,1763212233413,-30609.3673756,0.00019562,2]
[394040490,1763212233422,-662.7941348,0.00019733,2]
[394040491,1763212233431,-216.95582367,0.0001994,2]
[394040492,1763212233441,-166.66,0.00019952,2]
[394040493,1763212233450,-157.19895052,0.0001999,2]
[394040494,1763212233459,-15855.03,0.00020034,2]
[394040495,1763212233468,-1000.0,0.00020116,2]
[394040496,1763212233478,-166.66,0.00020123,2]
[394040497,1763212233487,-216.95582367,0.00020268,2]
[394040498,1763212233497,-216.95582367,0.00020319,2]
[394040499,1763212233507,-166.66,0.00020355,2]
[394040500,1763212233516,-6829.8730445,0.00020377,2]
[394040501,1763212233525,-1306.17715787,0.00020378,2]
[394040502,1763212233535,-478.96003305,0.00020473,2]
[394040503,1763212233545,-216.95582367,0.00020658,2]
[394040504,1763212233556,-166.66,0.00020758,2]
[394040505,1763212233565,-166.66,0.00020787,2]
[394040506,1763212233575,-1000.0,0.00020795,2]
[394040507,1763212233585,-216.95582367,0.00020823,2]
[394040508,1763212233594,-160.55864619,0.00020846,2]
[394040509,1763212233606,-200.0,0.000209,7]
[394040510,1763212233616,-150.99,0.00020951,2]
[394040511,1763212233625,-999.99,0.00020951,2]
[394040512,1763212233635,-167.49,0.00020951,2]
[394040513,1763212233644,-9999.99,0.00020951,2]
[394040514,1763212233653,-323.52,0.00020951,2]
[394040515,1763212233662,-14366.49,0.00020951,2]
[394040516,1763212233671,-150.99,0.00020951,2]
[394040517,1763212233681,-1188.29,0.00020951,2]
[394040518,1763212233689,-350.0,0.00021,2]
[394040519,1763212233699,-166.66,0.00021161,2]
[394040520,1763212233707,-58473.3595865,0.00021168,2]
[394040521,1763212233716,-216.95582367,0.00021294,2]
[394040522,1763212233726,-4115.57486987,0.00021406,2]
[394040523,1763212233735,-166.66,0.00021451,2]
[394040524,1763212233744,-216.95582367,0.00021574,2]
[394040525,1763212233753,-216.95582367,0.00021825,2]
[394040526,1763212233762,-5000.0,0.00021918,2]
[394040527,1763212233771,-216.95582367,0.00021988,2]
[394040528,1763212233780,-166.66,0.00022116,2]
[394040529,1763212233788,-216.95582367,0.00022399,2]
[394040530,1763212233798,-216.95582367,0.00022567,2]
[394040531,1763212233807,-166.66,0.0002278,2]
[394040532,1763212233815,-216.95582367,0.00022797,2]
[394040533,1763212233824,-1306.17715787,0.00022955,2]
[394040534,1763212233833,-216.95582367,0.00023268,2]
[394040535,1763212233842,-216.95582367,0.00023408,2]
[394040536,1763212233853,-166.66,0.00023444,2]
[394040537,1763212233862,-216.95582367,0.00023693,2]
[394040538,1763212233870,-216.95582367,0.00023873,2]
[394040539,1763212233879,-163.00519291,0.00023958,2]
[394040540,1763212233888,-4115.57486987,0.00024205,2]
[394040541,1763212233897,-216.95582367,0.00024334,2]
[394040542,1763212233906,-403.98555378,0.00024453,2]
[394040543,1763212233915,-216.95582367,0.00024632,2]
[394040544,1763212233925,-1477.93,0.00024658,30]
[394040545,1763212233934,-500.0,0.00024774,2]
[394040546,1763212233944,-5000.0,0.0002479,2]
[394040547,1763212233953,-500.0,0.00024799,2]
[394040548,1763212233962,-513.33825688,0.00024799,2]
[394040549,1763212233972,-500.0,0.00024799,2]
[394040550,1763212233981,-143597.68297652,0.000248,3]
[394040551,1763212233992,-30829.1213581,0.000248,3]
[394040552,1763212234004,-654.99999995,0.000248,3]
[394040553,1763212234015,-589.41127401,0.000248,3]
[394040554,1763212234030,-727.65809693,0.000248,3]
[394040555,1763212237776,-256.74612334,0.00019343,2]
[394040556,1763212237786,-225.2762002,0.000248,3]
[394040557,1763212237941,-2293.64959002,0.000248,3]
[394040558,1763212237955,-326.74106052,0.000248,3]
[394040560,1763212239809,-256.74612334,0.00024799,2]
[394040561,1763212239818,-75292.84196141,0.000248,3]
[394040562,1763212239974,-53166.26458934,0.000248,3]
[394040563,1763212239984,-500.0,0.0002488,2]
[394040564,1763212239993,-500.0,0.0002488,2]
[394040565,1763212240002,-534.0,0.0002489,2]
[394040566,1763212240012,-30770.3647107,0.0002489,3]
[394040567,1763212240020,-284.01036472,0.0002489,2]
[394040568,1763212240030,-500.0,0.00024899,2]
[394040569,1763212240041,-500.0,0.000249,9]
[394040570,1763212240051,-194562.359938,0.000249,3]
[394040571,1763212240060,-150.0,0.00025,2]
[394040572,1763212240070,-150.0,0.00025,2]
[394040573,1763212240080,-150.0,0.00025,2]
[394040574,1763212240090,-150.0,0.00025,2]
[394040575,1763212240100,-150.0,0.00025,2]
[394040576,1763212240111,-150.0,0.00025,2]
[394040577,1763212240120,-150.0,0.00025,2]
[394040578,1763212240129,-216.95582367,0.00025093,2]
[394040579,1763212240138,-299.7399294,0.00025118,2]
[394040580,1763212240147,-30770.3647107,0.00025218,3]
[394040581,1763212240156,-24320.2949922,0.00025218,3]
[394040582,1763212240165,-3430.0,0.00025228,2]
[394040583,1763212240174,-608.0,0.00025228,2]
[394040584,1763212240183,-365.04825906,0.00025228,2]
[394040585,1763212240199,-455.95174094,0.00025228,2]
[394040586,1763212240208,-944.04825906,0.00025228,2]
[394040587,1763212240219,-453.551289,0.00025228,2]
[394040588,1763212240230,-200.40045194,0.00025228,2]
[394040589,1763212240239,-145.20899269,0.00025228,2]
[394040590,1763212240250,-564.30400012,0.00025228,2]
[394040593,1763212243894,-565.48700719,0.00025228,2]
[394040594,1763212243904,-793.0,0.00025228,2]
[394040595,1763212243913,-905.29307226,0.00025228,2]
[394040596,1763212244697,-697.70692774,0.00025228,2]
[394040597,1763212244706,-560.0,0.00025228,2]
[394040598,1763212244716,-988.85331744,0.00025228,2]
[394040625,1763212245963,-1333.76000118,0.00025228,2]
[394040626,1763212246024,-4164.38668138,0.00025228,2]
[394040627,1763212246034,-907.0,0.00025228,2]
[394040628,1763212246043,-216.95582367,0.00025313,2]
[394040629,1763212246052,-575.0,0.00025438,2]